fUST/lending_fUST_20250608
["ID","MTS","AMOUNT","RATE_DAILY","PERIOD"]
[364946049,1749336633402,-1145.37,0.00021307,2]
[364946052,1749336633412,-440.0,0.00021307,2]
[364946054,1749336633422,-440.0,0.00021307,2]
[364946055,1749336633432,-440.0,0.00021307,2]
[364946056,1749336633442,-490.28,0.00021307,2]
[364946058,1749336633452,-582.8,0.00021307,2]
[364946059,1749336633462,-509.7,0.00021307,2]
[364946060,1749336633471,-500.0,0.00021485,2]
[364946061,1749336633486,-1145.37,0.00021581,2]
[364946062,1749336633496,-440.0,0.00021581,2]
[364946063,1749336633506,-440.0,0.00021581,2]
[364946064,1749336633517,-440.0,0.00021581,2]
[364946065,1749336633530,-490.28,0.00021581,2]
[364946066,1749336633541,-582.8,0.00021581,2]
[364946067,1749336633551,-509.7,0.00021581,2]
[364946068,1749336633560,-844.85,0.00021665,10]
[364946069,1749336633570,-160.0,0.00021672,2]
[364946070,1749336633580,-160.0,0.00021672,2]
[364946072,1749336633591,-842.5625,0.00021672,2]
[364946074,1749336633601,-467.27879392,0.00021673,2]
[364946076,1749336633611,-440.0,0.00021673,2]
[364946078,1749336633621,-430.0,0.00021673,2]
[364946080,1749336633631,-430.0,0.00021673,2]
[364946082,1749336633641,-430.0,0.00021673,2]
[364946084,1749336633650,-430.0,0.00021673,2]
[364946086,1749336633660,-430.0,0.00021673,2]
[364946087,1749336633669,-401.73885757,0.00021673,2]
[364946088,1749336633679,-430.0,0.00021673,2]
[364946089,1749336633689,-430.0,0.00021673,2]
[364946090,1749336633699,-230.0,0.00021673,2]
[364946091,1749336633709,-440.0,0.00021673,2]
[364946092,1749336633719,-440.0,0.00021673,2]
[364946093,1749336633729,-440.0,0.00021673,2]
[364946094,1749336633738,-440.0,0.00021673,2]
[364946095,1749336633749,-198.20090779,0.00021673,2]
[364946096,1749336633763,-231.79909221,0.00021673,2]
[364946097,1749336633772,-30.80447761,0.00021673,2]
[364946098,1749336633785,-409.19552239,0.00021673,2]
[364946099,1749336633795,-440.0,0.00021673,2]
[364946100,1749336633805,-440.0,0.00021673,2]
[364946101,1749336633815,-430.0,0.00021673,2]
[364946102,1749336633824,-440.0,0.00021673,2]
[364946103,1749336633834,-440.0,0.00021673,2]
[364946104,1749336633844,-440.0,0.00021673,2]
[364946105,1749336633854,-440.0,0.00021673,2]
[364946106,1749336633864,-440.0,0.00021673,2]
[364946107,1749336633874,-371.02602251,0.00021673,2]
[364946108,1749336633884,-440.0,0.00021673,2]
[364946109,1749336633894,-7.17488528,0.00021673,2]
[364946110,1749336633918,-432.82511472,0.00021673,2]
[364946111,1749336633928,-440.0,0.00021673,2]
[364946112,1749336633937,-440.0,0.00021674,2]
[364946113,1749336633947,-440.0,0.00021674,2]
[364946114,1749336633957,-440.0,0.00021674,2]
[364946115,1749336633967,-440.0,0.00021674,2]
[364946116,1749336633977,-246.77268036,0.00021674,2]
[364946117,1749336633987,-440.0,0.00021674,2]
[364946118,1749336633996,-440.0,0.00021674,2]
[364946119,1749336634006,-440.0,0.00021674,2]
[364946120,1749336634016,-440.0,0.00021674,2]
[364946121,1749336634026,-440.0,0.00021674,2]
[364946122,1749336634035,-274.61376877,0.00021674,2]
[364946123,1749336634045,-440.0,0.00021674,2]
[364946124,1749336634056,-440.0,0.00021674,2]
[364946125,1749336634066,-440.0,0.00021674,2]
[364946126,1749336634076,-440.0,0.00021674,2]
[364946127,1749336634086,-440.0,0.00021674,2]
[364946128,1749336634098,-181.92350618,0.00021674,2]
[364946129,1749336634108,-440.0,0.00021674,2]
[364946130,1749336634118,-440.0,0.00021674,2]
[364946131,1749336634128,-440.0,0.00021674,2]
[364946132,1749336634138,-440.0,0.00021674,2]
[364946133,1749336634147,-440.0,0.00021674,2]
[364946134,1749336634157,-440.0,0.00021674,2]
[364946135,1749336634167,-430.0,0.00021675,2]
[364946136,1749336634177,-430.0,0.00021675,2]
[364946137,1749336634187,-440.0,0.00021675,2]
[364946138,1749336634197,-239.14,0.00021675,2]
[364946139,1749336634208,-430.0,0.00021675,2]
[364946140,1749336634218,-430.0,0.00021675,2]
[364946141,1749336634228,-232.9454435,0.00021675,2]
[364946142,1749336634239,-480.0,0.00021675,2]
[364946143,1749336634249,-430.0,0.00021675,2]
[364946144,1749336634259,-440.0,0.00021675,2]
[364946145,1749336634269,-440.0,0.00021675,2]
[364946146,1749336634279,-430.0,0.00021675,2]
[364946147,1749336634289,-430.0,0.00021675,2]
[364946148,1749336634299,-239.40801279,0.00021675,2]
[364946149,1749336634310,-440.0,0.00021675,2]
[364946150,1749336634321,-430.0,0.00021675,2]
[364946151,1749336634332,-440.0,0.00021675,2]
[364946152,1749336634342,-430.0,0.00021675,2]
[364946153,1749336634353,-430.0,0.00021675,2]
[364946154,1749336634362,-440.0,0.00021675,2]
[364946155,1749336634372,-430.0,0.00021675,2]
[364946156,1749336634383,-440.0,0.00021675,2]
[364946157,1749336634393,-440.0,0.00021675,2]
[364946158,1749336634403,-430.0,0.00021675,2]
[364946159,1749336634413,-440.0,0.00021675,2]
[364946160,1749336634423,-328.874756,0.00021675,2]
[364946161,1749336634433,-328.874756,0.00021675,2]
[364946162,1749336634443,-440.0,0.00021675,2]
[364946163,1749336634453,-440.0,0.00021675,2]
[364946164,1749336634464,-440.0,0.00021675,2]
[364946165,1749336634477,-430.0,0.00021675,2]
[364946166,1749336634486,-151.0,0.00021675,2]
[364946167,1749336634496,-151.0,0.00021675,2]
[364946168,1749336634506,-151.0,0.00021675,2]
[364946169,1749336634516,-151.0,0.00021675,2]
[364946170,1749336634527,-159.98486,0.00021675,2]
[364946171,1749336634536,-440.0,0.00021675,2]
[364946172,1749336634547,-440.0,0.00021675,2]
[364946173,1749336634561,-440.0,0.00021675,2]
[364946174,1749336634575,-440.0,0.00021675,2]
[364946175,1749336634589,-430.0,0.00021675,2]
[364946176,1749336634602,-151.0,0.00021675,2]
[364946177,1749336634615,-151.0,0.00021675,2]
[364946178,1749336634629,-430.0,0.00021675,2]
[364946179,1749336634640,-220.0,0.00021675,2]
[364946180,1749336634651,-151.0,0.00021675,2]
[364946181,1749336634662,-430.0,0.00021675,2]
[364946182,1749336634676,-224.72,0.00021675,2]
[364946183,1749336634688,-440.0,0.00021675,2]
[364946184,1749336634700,-440.0,0.00021675,2]
[364946185,1749336634713,-440.0,0.00021675,2]
[364946186,1749336634725,-430.0,0.00021675,2]
[364946187,1749336634737,-440.0,0.00021675,2]
[364946188,1749336634750,-440.0,0.00021675,2]
[364946189,1749336634763,-440.0,0.00021675,2]
[364946190,1749336634775,-353.571351,0.00021675,2]
[364946191,1749336634787,-353.571351,0.00021675,2]
[364946192,1749336634799,-353.571351,0.00021675,2]
[364946193,1749336634811,-353.571351,0.00021675,2]
[364946194,1749336634823,-159.630579,0.00021675,2]
[364946195,1749336634836,-159.630579,0.00021675,2]
[364946196,1749336634848,-440.0,0.00021675,2]
[364946197,1749336634861,-376.628503,0.00021675,2]
[364946198,1749336634872,-376.628503,0.00021675,2]
[364946199,1749336634885,-159.630579,0.00021675,2]
[364946200,1749336634898,-159.630579,0.00021675,2]
[364946201,1749336634911,-376.628503,0.00021675,2]
[364946202,1749336634923,-376.628503,0.00021675,2]
[364946203,1749336634935,-440.0,0.00021675,2]
[364946204,1749336634950,-440.0,0.00021675,2]
[364946205,1749336634962,-151.0,0.00021675,2]
[364946206,1749336634988,-151.0,0.00021675,2]
[364946207,1749336635004,-151.0,0.00021675,2]
[364946208,1749336635020,-151.0,0.00021675,2]
[364946209,1749336635033,-151.0,0.00021675,2]
[364946210,1749336635044,-151.0,0.00021675,2]
[364946211,1749336635055,-440.0,0.00021675,2]
[364946212,1749336635066,-440.0,0.00021675,2]
[364946213,1749336635080,-192.52,0.0002169,2]
[364946214,1749336635092,-200.81271754,0.00021773,2]
[364946215,1749336635105,-364.7843186,0.00021808,2]
[364946216,1749336635118,-364.7843186,0.00021808,2]
[364946217,1749336635132,-364.7843186,0.00021808,2]
[364946218,1749336635145,-703.0965087,0.00021808,2]
[364946219,1749336635158,-1145.37,0.00021855,2]
[364946220,1749336635174,-440.0,0.00021855,2]
[364946221,1749336635187,-440.0,0.00021855,2]
[364946222,1749336635201,-440.0,0.00021855,2]
[364946223,1749336635215,-490.28,0.00021855,2]
[364946224,1749336635228,-582.8,0.00021855,2]
[364946225,1749336635244,-509.7,0.00021855,2]
[364946226,1749336635257,-151.0,0.00021918,2]
[364946227,1749336635271,-151.0,0.00021918,2]
[364946228,1749336635283,-151.0,0.00021918,2]
[364946229,1749336635294,-151.0,0.00021918,2]
[364946230,1749336635305,-151.0,0.00021918,2]
[364946231,1749336635316,-288.834841,0.00021918,2]
[364946232,1749336635327,-440.0,0.00021947,2]
[364946233,1749336635338,-440.0,0.00021947,2]
[364946234,1749336635350,-444.12046204,0.00021947,2]
[364946235,1749336635364,-440.0,0.00021947,2]
[364946236,1749336635378,-430.0,0.00021947,2]
[364946237,1749336635391,-268.15148337,0.00021947,2]
[364946238,1749336635404,-517.97156675,0.00021947,2]
[364946239,1749336635418,-529.87659794,0.00021947,2]
[364946240,1749336635428,-440.0,0.00021947,2]
[364946241,1749336635442,-420.0,0.00021947,2]
[364946242,1749336635455,-524.85156143,0.00021947,2]
[364946243,1749336635467,-440.0,0.00021947,2]
[364946244,1749336635480,-151.0,0.00021948,7]
[364946245,1749336635492,-151.0,0.00021948,7]
[364946246,1749336635507,-151.0,0.00021948,7]
[364946247,1749336635521,-1008.516827,0.00021948,2]
[364946248,1749336635533,-1008.516827,0.00021948,2]
[364946249,1749336635545,-151.0,0.00021948,7]
[364946250,1749336635560,-151.0,0.00021948,7]
[364946251,1749336635572,-254.317382,0.00021948,7]
[364946252,1749336635583,-151.719435,0.00021948,7]
[364946253,1749336635595,-151.719435,0.00021948,7]
[364946254,1749336635607,-440.0,0.00021948,2]
[364946255,1749336635619,-440.0,0.00021948,2]
[364946256,1749336635631,-440.0,0.00021948,2]
[364946257,1749336635643,-440.0,0.00021948,2]
[364946258,1749336635655,-440.0,0.00021948,2]
[364946259,1749336635667,-440.0,0.00021948,2]
[364946260,1749336635680,-151.0,0.00021948,7]
[364946261,1749336635693,-151.0,0.00021948,7]
[364946262,1749336635709,-440.0,0.00021948,2]
[364946263,1749336635723,-151.0,0.00021948,7]
[364946264,1749336635736,-197.13757345,0.00021948,2]
[364946265,1749336635747,-440.0,0.00021948,2]
[364946266,1749336635760,-151.0,0.00021948,7]
[364946267,1749336635772,-151.0,0.00021948,7]
[364946268,1749336635784,-440.0,0.00021948,2]
[364946269,1749336635796,-151.0,0.00021948,7]
[364946270,1749336635808,-440.0,0.00021948,2]
[364946271,1749336635820,-440.0,0.00021948,2]
[364946272,1749336635832,-392.99,0.00021948,2]
[364946273,1749336635848,-353.571351,0.00021948,7]
[364946274,1749336635860,-353.571351,0.00021948,7]
[364946275,1749336635872,-159.630579,0.00021948,7]
[364946276,1749336635884,-376.628503,0.00021948,7]
[364946277,1749336635896,-159.630579,0.00021948,7]
[364946278,1749336635909,-376.628503,0.00021948,7]
[364946279,1749336635920,-151.0,0.00021948,7]
[364946280,1749336635932,-440.0,0.00021948,2]
[364946281,1749336635944,-151.0,0.00021948,7]
[364946282,1749336635957,-440.0,0.00021948,2]
[364946283,1749336635968,-151.0,0.00021948,7]
[364946284,1749336635980,-440.0,0.00021948,2]
[364946285,1749336635992,-420.0,0.00021948,2]
[364946286,1749336636004,-440.0,0.00021948,2]
[364946287,1749336636015,-344.51814559,0.00021949,2]
[364946288,1749336636027,-476.05225503,0.00021949,2]
[364946289,1749336636039,-420.0,0.00021949,2]
[364946290,1749336636051,-151.0,0.00021949,7]
[364946291,1749336636063,-151.0,0.00021949,7]
[364946292,1749336636075,-440.0,0.00021949,2]
[364946293,1749336636086,-420.0,0.00021949,2]
[364946294,1749336636098,-151.0,0.00021949,7]
[364946295,1749336636110,-151.0,0.00021949,7]
[364946296,1749336636122,-151.0,0.00021949,7]
[364946297,1749336636134,-1008.516827,0.00021949,2]
[364946298,1749336636148,-1008.516827,0.00021949,2]
[364946299,1749336636162,-151.0,0.00021949,7]
[364946300,1749336636175,-151.0,0.00021949,7]
[364946301,1749336636187,-440.0,0.00021949,2]
[364946302,1749336636200,-440.0,0.00021949,2]
[364946303,1749336636212,-151.719435,0.00021949,7]
[364946304,1749336636224,-151.719435,0.00021949,7]
[364946305,1749336636236,-440.0,0.00021949,2]
[364946306,1749336636249,-328.874756,0.00021949,7]
[364946307,1749336636406,-328.874756,0.00021949,7]
[364946308,1749336636433,-440.0,0.00021949,2]
[364946309,1749336636444,-440.0,0.00021949,2]
[364946310,1749336636454,-440.0,0.00021949,2]
[364946311,1749336636464,-151.0,0.00021949,7]
[364946312,1749336636477,-151.0,0.00021949,7]
[364946313,1749336636488,-151.0,0.00021949,7]
[364946314,1749336636498,-151.0,0.00021949,7]
[364946315,1749336636510,-151.0,0.00021949,7]
[364946316,1749336636519,-440.0,0.00021949,2]
[364946317,1749336636530,-440.0,0.00021949,2]
[364946318,1749336636540,-294.92,0.00021949,2]
[364946319,1749336636554,-440.0,0.00021949,2]
[364946320,1749336636564,-151.0,0.00021949,7]
[364946321,1749336636574,-151.0,0.00021949,7]
[364946322,1749336636584,-151.0,0.00021949,7]
[364946323,1749336636594,-440.0,0.00021949,2]
[364946324,1749336636604,-440.0,0.00021949,2]
[364946325,1749336636614,-440.0,0.00021949,2]
[364946326,1749336636624,-440.0,0.00021949,2]
[364946327,1749336636634,-440.0,0.00021949,2]
[364946328,1749336636645,-353.571351,0.00021949,7]
[364946329,1749336636655,-353.571351,0.00021949,7]
[364946330,1749336636665,-440.0,0.00021949,2]
[364946331,1749336636675,-159.630579,0.00021949,7]
[364946332,1749336636685,-376.628503,0.00021949,7]
[364946333,1749336636695,-159.630579,0.00021949,7]
[364946334,1749336636706,-376.628503,0.00021949,7]
[364946335,1749336636716,-440.0,0.00021949,2]
[364946336,1749336636726,-151.0,0.00021949,7]
[364946337,1749336636736,-151.0,0.00021949,7]
[364946338,1749336636747,-151.0,0.00021949,7]
[364946339,1749336636757,-440.0,0.00021949,2]
[364946340,1749336636767,-328.874756,0.00021964,7]
[364946341,1749336636777,-328.874756,0.00021964,7]
[364946342,1749336636788,-151.0,0.00021964,7]
[364946343,1749336636798,-151.0,0.00021964,7]
[364946344,1749336636811,-416.95524019,0.00022122,2]
[364946345,1749336636821,-440.0,0.00022129,2]
[364946346,1749336636831,-440.0,0.00022129,2]
[364946347,1749336636842,-485.87654625,0.00022129,2]
[364946348,1749336636852,-490.28,0.00022129,2]
[364946349,1749336636863,-582.8,0.00022129,2]
[364946350,1749336636873,-509.7,0.00022129,2]
[364946351,1749336636883,-1742.0,0.00022188,3]
[364946352,1749336636893,-153.0,0.00022219,2]
[364946353,1749336636903,-153.0,0.00022219,2]
[364946354,1749336636913,-440.0,0.00022221,2]
[364946355,1749336636923,-500.0,0.00022221,2]
[364946356,1749336636934,-500.0,0.00022221,2]
[364946357,1749336636943,-644.85345476,0.00022221,2]
[364946358,1749336636954,-460.7337434,0.00022221,2]
[364946359,1749336636964,-159.630579,0.00022221,7]
[364946360,1749336636973,-159.630579,0.00022221,7]
[364946361,1749336636983,-151.0,0.00022221,7]
[364946362,1749336636993,-261.70220892,0.00022221,7]
[364946363,1749336637003,-349.93730541,0.00022221,2]
[364946364,1749336637013,-440.0,0.00022222,2]
[364946365,1749336637023,-440.0,0.00022222,2]
[364946366,1749336637033,-440.0,0.00022222,2]
[364946367,1749336637043,-440.0,0.00022222,2]
[364946368,1749336637053,-440.0,0.00022222,2]
[364946369,1749336637063,-440.0,0.00022222,2]
[364946370,1749336637073,-225.678668,0.00022222,7]
[364946371,1749336637083,-440.0,0.00022222,2]
[364946372,1749336637093,-257.587726,0.00022222,7]
[364946373,1749336637103,-151.0,0.00022222,7]
[364946374,1749336637113,-440.0,0.00022222,2]
[364946375,1749336637122,-251.26992573,0.00022222,7]
[364946376,1749336637132,-440.0,0.00022222,2]
[364946377,1749336637142,-420.0,0.00022222,2]
[364946378,1749336637152,-132.29536459,0.00022222,7]
[364946452,1749336640910,-440.0,0.00021033,2]
[364946460,1749336643652,-440.0,0.00021307,2]
[364946461,1749336643663,-440.0,0.00021581,2]
[364946462,1749336643674,-440.0,0.00021673,2]
[364946463,1749336643683,-544.14603148,0.00021674,2]
[364946465,1749336643693,-261.289672,0.00021675,2]
[364946466,1749336643703,-261.289672,0.00021675,2]
[364946467,1749336643713,-440.0,0.00021855,2]
[364946468,1749336643723,-87.83566034,0.00021948,7]
[364946478,1749336646761,-486.55,0.00021673,2]
[364946479,1749336646771,-120.26999257,0.00021674,2]
[364946482,1749337236919,165.977138,0.00013699,2]
[364946483,1749337637135,-230.056722,0.0001956,2]
[364946484,1749337637157,-241.1873187,0.00019574,2]
[364946485,1749337637178,-150.0,0.00019849,2]
[364946486,1749337637199,-164.53788797,0.00020001,2]
[364946487,1749337637221,-192.6226102,0.00020379,2]
[364946488,1749337637242,-160.0,0.00020479,2]
[364946489,1749337637264,-160.0,0.00020557,2]
[364946490,1749337637285,-300.0,0.00020576,2]
[364946491,1749337637307,-531.97152391,0.00020577,2]
[364946492,1749337639097,-962.1073257,0.00020577,2]
[364946493,1749337639121,-300.0,0.00020577,2]
[364946494,1749337639144,-620.5880622,0.00020577,2]
[364946495,1749337747536,150.0,0.000189,2]
[364946542,1749337831943,-2513.4493467,0.00019838,2]
[364946544,1749337831953,-160.0,0.00019838,2]
[364946546,1749337831962,-300.0,0.00020576,2]
[364946548,1749337831971,-300.0,0.00020576,2]
[364946550,1749337831981,-1200.0,0.00020576,2]
[364946552,1749337831991,-842.5625,0.00020577,2]
[364946554,1749337832001,-160.0,0.00020577,2]
[364946556,1749337832011,-300.0,0.00020577,2]
[364946557,1749337832020,-510.49767918,0.00020578,2]
[364946559,1749337832031,-440.0,0.00020578,2]
[364946561,1749337832041,-440.0,0.00020578,2]
[364946564,1749337832051,-521.35,0.00020578,2]
[364946565,1749337832061,-440.0,0.00020578,2]
[364946567,1749337832072,-440.0,0.00020578,2]
[364946569,1749337832084,-440.0,0.00020578,2]
[364946572,1749337832099,-440.0,0.00020578,2]
[364946574,1749337832108,-440.0,0.00020578,2]
[364946576,1749337832118,-328.32368866,0.00020578,2]
[364946578,1749337832128,-440.0,0.00020578,2]
[364946580,1749337832138,-1097.36,0.00020578,2]
[364946582,1749337832148,-440.0,0.00020578,2]
[364946584,1749337832158,-440.0,0.00020578,2]
[364946586,1749337832167,-440.0,0.00020578,2]
[364946588,1749337832177,-440.0,0.00020578,2]
[364946590,1749337832187,-440.0,0.00020578,2]
[364946592,1749337832197,-440.0,0.00020578,2]
[364946594,1749337832207,-440.0,0.00020578,2]
[364946596,1749337832218,-420.0,0.00020578,2]
[364946598,1749337832228,-654.22,0.00020578,2]
[364946600,1749337832239,-507.7,0.00020578,2]
[364946602,1749337832250,-440.0,0.00020578,2]
[364946604,1749337832260,-440.0,0.00020578,2]
[364946606,1749337832271,-430.0,0.00020578,2]
[364946608,1749337832280,-440.0,0.00020578,2]
[364946610,1749337832290,-440.0,0.00020579,2]
[364946612,1749337832299,-440.0,0.00020579,2]
[364946614,1749337832309,-336.123583,0.00020579,2]
[364946616,1749337832319,-410.0,0.00020579,2]
[364946618,1749337832328,-440.0,0.00020579,2]
[364946620,1749337832338,-400.0,0.00020579,2]
[364946622,1749337832348,-196.14802962,0.00020579,2]
[364946623,1749337832358,-420.0,0.00020579,2]
[364946625,1749337832369,-440.0,0.00020579,2]
[364946627,1749337832378,-596.48,0.00020579,2]
[364946629,1749337832388,-440.0,0.00020579,2]
[364946631,1749337832398,-420.0,0.00020579,2]
[364946633,1749337832408,-440.0,0.00020579,2]
[364946635,1749337832419,-440.0,0.00020579,2]
[364946637,1749337832429,-406.46787362,0.00020579,2]
[364946639,1749337832439,-440.0,0.00020579,2]
[364946641,1749337832448,-430.0,0.00020579,2]
[364946643,1749337832458,-245.33832303,0.00020579,2]
[364946645,1749337832467,-420.0,0.00020579,2]
[364946647,1749337832478,-440.0,0.00020579,2]
[364946649,1749337832487,-500.0,0.00020579,2]
[364946651,1749337832497,-440.0,0.00020579,2]
[364946653,1749337832507,-189.63842136,0.00020579,2]
[364946655,1749337832516,-440.0,0.00020579,2]
[364946657,1749337832526,-440.0,0.00020579,2]
[364946658,1749337832535,-430.0,0.00020579,2]
[364946660,1749337832544,-440.0,0.00020579,2]
[364946662,1749337832554,-440.0,0.00020579,2]
[364946664,1749337832564,-430.0,0.00020579,2]
[364946666,1749337832574,-440.0,0.00020579,2]
[364946668,1749337832584,-173.16803214,0.00020579,2]
[364946670,1749337832594,-335.86043483,0.00020579,2]
[364946672,1749337832604,-440.0,0.00020579,2]
[364946674,1749337832614,-445.46472631,0.00020579,2]
[364946676,1749337832623,-481.6063874,0.00020579,2]
[364946678,1749337832633,-440.0,0.00020579,2]
[364946680,1749337832643,-440.0,0.00020579,2]
[364946682,1749337832653,-540.3,0.00020579,2]
[364946684,1749337832665,-189.11671104,0.00020579,2]
[364946686,1749337832675,-430.0,0.00020579,2]
[364946688,1749337832684,-440.0,0.00020579,2]
[364946690,1749337832695,-430.0,0.00020579,2]
[364946691,1749337832704,-440.0,0.00020579,2]
[364946693,1749337832714,-440.0,0.00020579,2]
[364946696,1749337832727,-440.0,0.00020579,2]
[364946697,1749337832737,-462.79877276,0.00020579,2]
[364946698,1749337832747,-440.0,0.00020579,2]
[364946699,1749337832757,-212.44666403,0.00020579,2]
[364946700,1749337832767,-430.0,0.00020579,2]
[364946701,1749337832776,-440.0,0.00020579,2]
[364946703,1749337832786,-433.43119107,0.00020579,2]
[364946704,1749337832796,-819.92,0.00020715,2]
[364946705,1749337832806,-188.072,0.00020757,2]
[364946706,1749337832815,-500.0,0.00020758,2]
[364946707,1749337832825,-353.1282096,0.00020778,2]
[364946708,1749337832836,-317.088591,0.00020778,2]
[364946709,1749337832845,-572.6068135,0.00020778,2]
[364946710,1749337832855,-440.0,0.00020815,2]
[364946711,1749337832865,-440.0,0.00020815,2]
[364946712,1749337832874,-440.0,0.00020815,2]
[364946713,1749337832884,-440.0,0.00020815,2]
[364946714,1749337832894,-440.0,0.00020815,2]
[364946715,1749337832904,-999.92556039,0.00020851,2]
[364946716,1749337832914,-440.0,0.00020852,2]
[364946717,1749337832924,-440.0,0.00020852,2]
[364946718,1749337832933,-440.0,0.00020852,2]
[364946719,1749337832943,-440.0,0.00020852,2]
[364946720,1749337832953,-440.0,0.00020852,2]
[364946721,1749337832962,-440.0,0.00020852,2]
[364946722,1749337832972,-440.0,0.00020852,2]
[364946723,1749337832981,-440.0,0.00020852,2]
[364946724,1749337832991,-1097.36,0.00020852,2]
[364946725,1749337833001,-440.0,0.00020852,2]
[364946726,1749337833011,-440.0,0.00020852,2]
[364946727,1749337833020,-420.0,0.00020852,2]
[364946728,1749337833030,-420.0,0.00020852,2]
[364946729,1749337833039,-390.59134368,0.00020852,2]
[364946730,1749337833048,-440.0,0.00020852,2]
[364946731,1749337833058,-420.0,0.00020852,2]
[364946732,1749337833068,-654.22,0.00020852,2]
[364946733,1749337833083,-507.7,0.00020852,2]
[364946734,1749337833093,-440.0,0.00020852,2]
[364946735,1749337833102,-440.0,0.00020852,2]
[364946736,1749337833112,-440.0,0.00020853,2]
[364946737,1749337833123,-596.48,0.00020853,2]
[364946738,1749337833133,-148.05692561,0.00020853,2]
[364946739,1749337833148,-291.94307439,0.00020853,2]
[364946740,1749337833159,-440.0,0.00020853,2]
[364946741,1749337833169,-33.55040907,0.00020853,2]
[364946742,1749337833181,-406.44959093,0.00020853,2]
[364946743,1749337833191,-215.22495014,0.00020853,2]
[364946744,1749337833201,-378.32545893,0.00020853,2]
[364946760,1749337837926,-167.3439313,0.00020479,2]
[364946761,1749337837937,-127.44136305,0.00020577,2]
[364946772,1749337840148,-182.11776785,0.00020577,2]
[364946773,1749337840159,-260.59889615,0.00020577,2]
[364946778,1749337843011,-239.40110385,0.00020577,2]
[364946779,1749337843022,-260.59889615,0.00020577,2]
[364946789,1749337846009,-239.40110385,0.00020577,2]
[364946790,1749337846019,-598.84238107,0.00020577,2]
[364946791,1749337846035,-500.0,0.00020577,2]
[364946792,1749337846045,-602.75999999,0.00020577,2]
[364946793,1749337846056,-500.0,0.00020577,2]
[364946794,1749337846065,-440.0,0.00020578,2]
[364946795,1749337846079,-440.0,0.00020578,2]
[364946796,1749337846089,-479.36,0.00020578,2]
[364946797,1749337846099,-809.48,0.0002071,2]
[364946798,1749337846108,-440.0,0.00020852,2]
[364946799,1749337846119,-440.0,0.00020852,2]
[364946800,1749337846128,-61.67454107,0.00020853,2]
[364946801,1749337846137,-440.0,0.00020853,2]
[364946802,1749337846147,-262.13737178,0.00020853,2]
[364946803,1749337846156,-440.0,0.00020853,2]
[364946804,1749337846166,-440.0,0.00020853,2]
[364946805,1749337846175,-440.0,0.00020853,2]
[364946806,1749337846185,-540.3,0.00020853,2]
[364946807,1749337846195,-440.0,0.00020853,2]
[364946808,1749337846204,-420.0,0.00020853,2]
[364946809,1749337846214,-440.0,0.00020853,2]
[364946810,1749337846223,-440.0,0.00020853,2]
[364946811,1749337846232,-440.0,0.00020853,2]
[364946812,1749337846242,-440.0,0.00020853,2]
[364946813,1749337846251,-500.0,0.00020858,2]